bitfinex/quotes_SOLUSD_20251007
["timestamp","ask_amount","ask_price","bid_price","bid_amount"]
[1759844606557,23.24,227.79,227.3,30.19628099]
[1759844606558,5.00457608,227.5,227.3,30.19628099]
[1759844606722,20.8,227.34,227.3,30.19628099]
[1759844606895,5.00457608,227.5,227.3,30.19628099]
[1759844606896,3.55909083,227.5,227.3,30.19628099]
[1759844607094,5.00457608,227.34,227.3,30.19628099]
[1759844607295,5.00457608,227.34,227.31,40.82]
[1759844607514,3.52292763,227.57,227.3,30.19628099]
[1759844607818,5.00457608,227.34,227.33,42.25765315]
[1759844607994,20.8,227.31,227.21,0.16541275]
[1759844608193,5.00457608,227.28,227.27,70.16]
[1759844608398,10.00915216,227.28,227.21,0.16541275]
[1759844608617,10.00915216,227.28,227.15,2.71136491]
[1759844608618,6.67697993,227.28,227.2,85.27541275]
[1759844608820,5.00457608,227.21,227.2,82.97808691]
[1759844609046,20.01830432,227.5,227.2,82.97808691]
[1759844609047,20.8,227.33,227.2,37.09808691]
[1759844609321,20.8,227.33,227.14,100.12197825]
[1759844609510,6.64520215,227.32,227.14,100.12197825]
[1759844609716,7.39769592,227.15,227.14,100.12197825]
[1759844609915,6.64520215,227.32,227.14,100.12197825]
[1759844609916,6.64520215,227.23,227.14,100.12197825]
[1759844610118,58.01639924,227.41,227.14,100.12197825]
[1759844610119,20.8,227.38,227.14,100.12197825]
[1759844610328,7.39769592,227.5,227.14,100.12197825]
[1759844610524,6.64520215,227.47,227.15,45.68]
[1759844610725,22.13489554,227.63,227.14,100.12197825]
[1759844610726,22.36490638,227.69,227.16,0.72]
[1759844610933,22.90864484,227.6,227.19,20.8]
[1759844611145,22.85065038,227.74,227.2,45.82]
[1759844611350,22.45619445,227.64,227.24,20.8]
[1759844611639,7.39769592,227.54,227.25,80.1]
[1759844611818,16.5,227.72,227.29,20.8]
[1759844612020,7.39769592,227.75,227.3,0.72]
[1759844612234,31.27118731,227.73,227.3,21.52]
[1759844612407,31.27118731,227.73,227.31,0.72]
[1759844612610,6.64520215,227.72,227.32,33.14]
[1759844612810,6.64520215,227.72,227.33,46.02]
[1759844613012,31.27118731,227.73,227.34,0.72]
[1759844613210,7.39769592,227.7,227.38,20.8]
[1759844613449,7.39769592,227.7,227.33,45.3]
[1759844613450,7.39769592,227.59,227.39,46.16]
[1759844613615,31.27118731,227.73,227.4,66.96]
[1759844613809,31.27118731,227.73,227.43,20.8]
[1759844614117,7.39769592,227.7,227.44,0.72]
[1759844614325,31.27118731,227.73,227.45,37.62]
[1759844614516,31.27118731,227.73,227.46,0.72]
[1759844614851,7.39769592,227.61,227.47,34.22]
[1759844615019,31.27118731,227.73,227.47,80.12]
[1759844615338,20.8,227.7,227.48,0.72]
[1759844615510,20.8,227.46,227.27,0.72]
[1759844616033,20.8,227.46,227.14,100.12197825]
[1759844616034,20.8,227.46,227.22,46.34]
[1759844616234,20.8,227.42,227.22,46.34]
[1759844616436,20.8,227.34,227.15,46.46]
[1759844616617,7.39769592,227.5,227.15,46.46]
[1759844616618,20.8,227.16,227.15,46.46]
[1759844616934,7.39769592,227.25,227.15,47.18]
[1759844617125,20.8,227.37,227.16,0.72]
[1759844617432,20.8,227.45,227.16,0.72]
[1759844617623,7.39769592,227.33,227.17,46.42]
[1759844617932,22.85065038,227.74,227.18,47.14]
[1759844618110,11.00916909,227.73,227.22,20.8]
[1759844618313,7.39769592,227.52,227.23,0.71]
[1759844618634,31.27118731,227.49,227.27,20.8]
[1759844618827,31.27118731,227.49,227.28,0.71]
[1759844619535,31.27118731,227.49,227.29,10.87647521]
[1759844619746,31.27118731,227.49,227.3,34.95]
[1759844619908,31.27118731,227.49,227.31,0.71]
[1759844619909,10.87647521,227.48,227.31,0.71]
[1759844620111,20.8,227.4,227.31,0.71]
[1759844620327,28.19769592,227.32,227.24,46.48]
[1759844620528,31.27118731,227.49,227.25,46.48]
[1759844620720,31.27118731,227.49,227.13,64.82884298]
[1759844620721,20.8,227.35,227.26,47.31]
[1759844620921,7.39769592,227.4,227.27,0.71]
[1759844621210,11.22639982,227.62,227.27,0.71]
[1759844621211,10.87647521,227.44,227.27,0.71]
[1759844621415,7.39769592,227.35,227.28,46.56]
[1759844621617,20.8,227.37,227.28,46.56]
[1759844621807,10.87647521,227.32,227.28,46.56]
[1759844622014,7.39769592,227.3,227.28,46.56]
[1759844622313,20.8,227.27,227.16,0.71]
[1759844622627,20.8,227.15,227.13,64.82884298]
[1759844622948,31.67647521,227.25,227.13,64.82884298]
[1759844623107,20.8,227.15,227.13,64.82884298]
[1759844623312,31.27118731,227.29,227.14,100.83197825]
[1759844623513,31.27118731,227.29,227.15,0.71]
[1759844624126,29.83118731,227.29,227.16,10.87647521]
[1759844624329,29.83118731,227.29,227.17,0.71]
[1759844624539,29.83118731,227.29,227.18,10.87647521]
[1759844624834,29.83118731,227.29,227.19,0.71]
[1759844625239,7.39769592,227.24,227.14,100.12197825]
[1759844625440,20.8,227.19,227.15,46.58]
[1759844625648,10.87647521,227.15,227.14,78.00562802]
[1759844625828,10.87647521,227.15,227.14,75.46253968]
[1759844626019,20.8,227.08,226.8,2.65]
[1759844626344,10.87647521,227.15,226.8,2.65]
[1759844626345,18.27417113,227.03,226.9,166.76]
[1759844626724,18.27417113,227.03,226.99,46.84]
[1759844626924,18.27417113,227.03,226.98,46.86]
[1759844627126,18.27417113,227.03,226.9,120.0]
[1759844627317,7.39769592,227.03,226.9,120.0]
[1759844627520,22.05364173,226.99,226.79,11.40460455]
[1759844627742,20.8,226.77,226.63,47.98]
[1759844627941,7.39769592,226.72,226.63,47.98]
[1759844628163,20.8,226.86,226.71,168.69]
[1759844628640,29.11118731,226.79,226.72,0.71]
[1759844628833,26.95118731,226.79,226.73,82.54]
[1759844629237,21.24417534,226.79,226.77,20.8]
[1759844629452,20.18828554,227.41,226.78,22.21498449]
[1759844629752,11.45839218,227.4,226.86,38.43201974]
[1759844629918,11.45839218,227.4,226.74,48.34]
[1759844629919,7.39769592,227.13,226.88,21.94380461]
[1759844630118,7.39769592,227.04,226.71,120.0]
[1759844630331,13.22955482,227.42,226.74,48.46]
[1759844630537,4.34227912,227.41,226.77,20.8]
[1759844630754,26.28,227.4,226.86,20.8]
[1759844630925,22.70001442,227.49,226.9,20.8]
[1759844631121,2.29641055,227.39,226.94,20.8]
[1759844631324,7.39769592,227.29,226.98,20.8]
[1759844631555,2.29641055,227.39,226.96,20.8]
[1759844631842,2.29641055,227.39,227.0,20.8]
[1759844632059,2.29641055,227.39,226.98,20.8]
[1759844632362,7.39769592,227.5,226.99,48.68]
[1759844632666,7.39769592,227.5,226.95,34.3]
[1759844632667,26.28,227.47,226.95,55.1]
[1759844632819,7.39769592,227.1,226.95,34.3]
[1759844633016,20.8,227.22,226.96,48.78]
[1759844633360,7.39769592,227.25,226.96,48.78]
[1759844633517,20.8,227.0,226.95,34.3]
[1759844633722,26.28,227.28,226.95,34.3]
[1759844633976,4.85525928,227.95,226.96,48.8]
[1759844633977,7.39769592,227.12,226.96,48.8]
[1759844634252,7.39769592,227.5,226.99,20.8]
[1759844634622,7.39769592,227.5,227.0,20.8]
[1759844634823,7.39769592,227.5,227.0,21.60680475]
[1759844635025,3.57523162,227.72,227.13,20.8]
[1759844635258,7.39769592,227.75,227.17,20.8]
[1759844635438,7.39769592,227.75,227.21,20.8]
[1759844635622,20.8,227.72,227.21,20.8]
[1759844635819,7.39769592,227.43,227.22,48.78]
[1759844636056,7.39769592,227.75,227.18,34.3]
[1759844636057,7.39769592,227.36,227.18,34.3]
[1759844636228,29.59078368,227.75,227.19,40.64]
[1759844636229,20.8,227.57,227.19,40.64]
[1759844636569,47.33078368,227.75,227.18,34.3]
[1759844636570,20.8,227.25,227.18,34.3]
[1759844636751,7.39769592,227.5,227.18,34.3]
[1759844636752,20.8,227.26,227.2,48.82]
[1759844636967,7.39769592,227.5,227.2,48.82]
[1759844637130,7.39769592,227.5,227.18,34.3]
[1759844637131,7.39769592,227.5,227.21,48.82]
[1759844637446,22.06438471,227.66,227.21,48.82]
[1759844637659,22.06438471,227.66,227.22,10.87647521]
[1759844637949,22.06438471,227.66,227.23,48.8]
[1759844638121,10.87647521,227.37,227.18,34.3]
[1759844638319,10.87647521,227.37,227.19,49.16]
[1759844638524,20.8,227.24,227.19,49.16]
[1759844639033,20.8,227.24,227.18,34.3]
[1759844639235,9.69192373,227.5,227.18,34.3]
[1759844639236,2.29422781,227.5,227.19,49.18]
[1759844639435,20.8,227.28,227.19,49.18]
[1759844639824,28.19769592,227.28,227.18,34.3]
[1759844640060,22.48847338,227.76,227.19,40.88]
[1759844640227,7.39769592,227.45,227.24,21.69385741]
[1759844640428,7.39769592,227.55,227.31,21.5675558]
[1759844640631,0.65,227.8,227.32,49.16]
[1759844640855,7.39769592,227.75,227.33,21.04187096]
[1759844641159,21.0282493,227.82,227.4,20.8]
[1759844641328,7.39769592,227.66,227.44,20.8]
[1759844641529,37.68763429,227.99,227.37,32.31587762]
[1759844641530,7.39769592,227.75,227.37,21.43940241]
[1759844641729,7.39769592,227.66,227.42,20.8]
[1759844642034,7.39769592,227.75,227.43,25.78]
[1759844642233,7.39769592,227.75,227.44,49.18]
[1759844642441,20.8,227.5,227.38,34.3]
[1759844642650,20.8,227.48,227.45,49.18]
[1759844642854,7.39769592,227.46,227.37,55.73940241]
[1759844643162,7.85252297,227.4,227.38,49.18]
[1759844643337,20.8,227.5,227.38,49.18]
[1759844643651,20.8,227.5,227.37,55.73940241]
[1759844643652,10.87647521,227.49,227.39,49.14]
[1759844643827,10.87647521,227.57,227.39,49.14]
[1759844644347,0.2,227.89,227.38,20.8]
[1759844644538,7.85252297,227.59,227.4,10.87647521]
[1759844644734,0.2,227.89,227.39,10.87647521]
[1759844645056,7.85252297,227.57,227.4,47.57647521]
[1759844645254,2.49180323,227.73,227.47,20.8]
[1759844645556,0.2,227.73,227.51,20.8]
[1759844645767,0.2,227.73,227.52,49.14]
[1759844645938,0.2,227.73,227.53,10.87647521]
[1759844646132,0.2,227.73,227.37,34.97]
[1759844646341,0.2,227.73,227.48,20.8]
[1759844646634,0.2,227.73,227.49,49.1]
[1759844646855,0.2,227.73,227.5,10.87647521]
[1759844647026,20.8,227.69,227.51,49.12]
[1759844647366,7.85252297,227.57,227.37,34.3]
[1759844647542,10.87647521,227.8,227.38,59.97647521]
[1759844647860,7.85252297,227.59,227.39,49.08]
[1759844648058,7.85252297,227.59,227.4,49.06]
[1759844648235,4.34227912,227.82,227.4,49.06]
[1759844648236,20.8,227.6,227.4,49.06]
[1759844648430,7.85252297,227.55,227.4,49.06]
[1759844648637,7.85252297,227.52,227.37,34.3]
[1759844648832,7.85252297,227.54,227.38,49.02]
[1759844649071,0.68,227.75,227.38,49.02]
[1759844649257,20.8,227.67,227.38,49.02]
[1759844649560,10.87647521,227.61,227.38,49.02]
[1759844649762,20.8,227.58,227.38,49.02]
[1759844649979,28.65252297,227.58,227.39,10.87647521]
[1759844650262,7.85252297,227.57,227.37,34.3]
[1759844650440,28.65252297,227.58,227.4,48.96]
[1759844650637,10.87647521,227.66,227.41,10.87647521]
[1759844651035,2.29188372,227.72,227.45,10.87647521]
[1759844651231,2.29188372,227.72,227.44,20.8]
[1759844651532,2.7884661,227.82,227.4,13.21]
[1759844651760,2.29124318,227.77,227.42,10.87647521]
[1759844651945,7.85252297,227.66,227.46,20.8]
[1759844652264,2.29124318,227.77,227.51,10.87647521]
[1759844652458,0.2,227.89,227.55,10.87647521]
[1759844652667,7.85252297,227.74,227.56,49.0]
[1759844652969,7.85252297,227.72,227.46,20.8]
[1759844653136,2.29067583,227.85,227.5,20.8]
[1759844653336,7.85252297,227.72,227.5,20.8]
[1759844653560,7.85252297,227.72,227.46,20.8]
[1759844653763,7.85252297,227.7,227.5,20.8]
[1759844654057,7.85252297,227.72,227.5,20.8]
[1759844654250,2.29067583,227.85,227.51,48.78]
[1759844654450,7.85252297,227.68,227.51,48.78]
[1759844654657,2.29067583,227.85,227.54,20.8]
[1759844654839,7.85252297,227.74,227.54,20.8]
[1759844655042,2.29067583,227.85,227.54,20.8]
[1759844655444,0.2,227.89,227.54,20.8]
[1759844655667,7.85252297,227.81,227.55,20.8]
[1759844655844,7.85252297,227.67,227.56,34.26]
[1759844656047,7.85252297,227.68,227.57,82.94]
[1759844656248,7.85252297,227.68,227.58,48.76]
[1759844656588,20.8,227.7,227.59,48.74]
[1759844656945,20.8,227.69,227.59,48.74]
[1759844657147,7.85252297,227.61,227.6,48.66]
[1759844657748,20.8,227.62,227.6,48.66]
[1759844657950,2.29169166,227.74,227.6,48.66]
[1759844658161,7.85252297,227.63,227.6,48.66]
[1759844658479,7.85252297,227.61,227.6,48.66]
[1759844658655,10.87647521,227.65,227.6,48.66]
[1759844658865,20.8,227.62,227.6,48.66]
[1759844659059,31.67647521,227.58,227.57,34.26]
[1759844659277,39.52899818,227.58,227.57,82.7]
[1759844659782,2.29169166,227.74,227.57,82.7]
[1759844659951,10.87647521,227.73,227.57,82.7]
[1759844660154,7.85252297,227.59,227.57,82.7]
[1759844660370,18.72899818,227.59,227.58,48.36]
[1759844660572,10.87647521,227.59,227.58,48.36]
[1759844660775,20.8,227.56,227.42,34.26]
[1759844660955,20.8,227.52,227.43,48.36]
[1759844661151,0.68,227.7,227.43,48.36]
[1759844661368,7.85252297,227.5,227.42,34.26]
[1759844661569,10.87647521,227.57,227.42,34.26]
[1759844661570,20.8,227.54,227.43,48.38]
[1759844661754,7.85252297,227.52,227.43,48.38]
[1759844661954,20.8,227.54,227.44,48.36]
[1759844662155,10.87647521,227.61,227.44,48.36]
[1759844662377,20.8,227.54,227.44,48.36]
[1759844662566,10.87647521,227.62,227.44,48.36]
[1759844662567,7.85252297,227.62,227.44,48.36]
[1759844662766,0.68,227.7,227.47,20.8]
[1759844662985,7.85252297,227.67,227.47,20.8]
[1759844663184,2.29169166,227.74,227.48,10.87647521]
[1759844663371,0.68,227.81,227.55,20.8]
[1759844663561,7.85252297,227.76,227.56,59.13647521]
[1759844663762,20.8,227.76,227.56,59.13647521]
[1759844663963,2.29066637,227.84,227.56,59.13647521]
[1759844664204,7.85252297,227.77,227.59,20.8]
[1759844664501,7.85252297,227.8,227.6,31.67647521]
[1759844664665,7.85252297,227.78,227.6,31.67647521]
[1759844664871,7.85252297,227.81,227.62,10.87647521]
[1759844665192,2.29029009,227.87,227.62,10.87647521]
[1759844665373,7.85252297,227.67,227.5,21.24098309]
[1759844665684,20.8,227.73,227.51,70.1353978]
[1759844665886,7.85252297,227.68,227.5,21.71098309]
[1759844666086,20.8,227.69,227.51,81.01187301]
[1759844666267,20.8,227.69,227.53,10.87647521]
[1759844666466,20.8,227.68,227.53,10.87647445]
[1759844666667,20.8,227.77,227.54,48.75]
[1759844666990,2.29089533,227.86,227.57,20.8]
[1759844667187,2.29089533,227.86,227.58,0.47]
[1759844667493,0.2,227.89,227.58,0.47]
[1759844667687,0.2,227.89,227.62,20.8]
[1759844667995,0.2,227.89,227.63,0.47]
[1759844668375,0.2,227.89,227.67,20.8]
[1759844668687,7.85252297,227.88,227.69,10.87647521]
[1759844668888,0.2,227.89,227.68,34.71]
[1759844668889,7.85252297,227.83,227.68,34.71]
[1759844669118,7.85252297,227.83,227.7,48.02]
[1759844669294,7.85252297,227.84,227.71,48.0]
[1759844669467,7.85252297,227.8,227.68,34.24]
[1759844669667,28.65252297,227.82,227.69,47.96]
[1759844669864,7.85252297,227.78,227.68,34.24]
[1759844670064,28.65252297,227.78,227.69,47.92]
[1759844670370,20.8,227.78,227.69,47.92]
[1759844670568,7.85252297,227.76,227.68,34.24]
[1759844670772,7.85252297,227.73,227.69,47.86]
[1759844670988,20.8,227.69,227.68,34.24]
[1759844671193,29.32252297,227.69,227.5,21.24098309]
[1759844671381,20.8,227.65,227.61,34.24]
[1759844671577,7.85252297,227.62,227.61,34.24]
[1759844671887,20.8,227.65,227.61,82.02]
[1759844672077,21.47,227.65,227.61,82.02]
[1759844672280,7.85252297,227.63,227.61,82.02]
[1759844672591,20.8,227.65,227.62,47.72]
[1759844672795,28.65252297,227.65,227.62,47.72]
[1759844672974,0.67,227.8,227.62,47.72]
[1759844673176,7.85252297,227.72,227.62,47.72]
[1759844673369,7.85252297,227.66,227.61,34.24]
[1759844673593,20.8,227.85,227.62,47.66]
[1759844673772,0.67,227.71,227.62,47.66]
[1759844673972,0.67,227.79,227.62,47.66]
[1759844674302,20.8,227.6,227.42,34.24]
[1759844674483,7.85252297,227.53,227.42,34.24]
[1759844674993,7.85252297,227.53,227.43,47.78]
[1759844675307,7.85252297,227.5,227.44,47.74]
[1759844675488,7.85252297,227.5,227.45,47.74]
[1759844675800,7.85252297,227.5,227.42,34.24]
[1759844675976,20.8,227.55,227.42,34.24]
[1759844676174,20.8,227.51,227.43,47.64]
[1759844676377,7.8498848,227.44,227.42,34.24]
[1759844676619,20.8,227.47,227.43,47.62]
[1759844676796,7.8498848,227.44,227.42,34.24]
[1759844676993,7.8498848,227.44,227.43,47.58]
[1759844677186,10.87647521,227.43,227.42,34.24]
[1759844677384,20.8,227.4,227.36,34.24]
[1759844677788,0.67,227.5,227.37,47.54]
[1759844678008,10.87647521,227.49,227.37,47.54]
[1759844678202,7.8498848,227.47,227.37,55.3898848]
[1759844678506,20.8,227.48,227.37,8.3198848]
[1759844678709,0.67,227.57,227.41,7.8498848]
[1759844678710,7.8498848,227.51,227.41,7.8498848]
[1759844679097,7.8498848,227.51,227.43,7.8498848]
[1759844679297,0.67,227.65,227.42,0.47]
[1759844679523,7.8498848,227.57,227.48,7.8498848]
[1759844679720,2.80400165,227.75,227.36,34.24]
[1759844679721,7.8498848,227.49,227.37,0.47]
[1759844679887,7.8498848,227.49,227.36,34.24]
[1759844679888,20.8,227.47,227.38,47.54]
[1759844680085,7.8498848,227.42,227.39,47.52]
[1759844680318,7.8498848,227.4,227.36,34.24]
[1759844680504,20.8,227.43,227.37,47.5]
[1759844680704,7.8498848,227.41,227.37,47.5]
[1759844681002,7.8498848,227.41,227.36,34.24]
[1759844681003,7.8498848,227.4,227.36,34.24]
[1759844681202,7.8498848,227.4,227.37,47.48]
[1759844681400,7.8498848,227.38,227.36,34.24]
[1759844681653,7.8498848,227.38,227.37,47.38]
[1759844681794,7.8498848,227.38,227.26,7.8498848]
[1759844682134,7.8498848,227.28,227.18,0.47]
[1759844682296,21.47,227.32,227.1,82.47896725]
[1759844682597,7.8498848,227.26,227.18,7.8498848]
[1759844682798,7.8498848,227.28,227.18,7.8498848]
[1759844683000,7.8498848,227.28,227.19,47.3]
[1759844683214,20.8,227.32,227.2,7.8498848]
[1759844683410,7.8498848,227.33,227.24,7.8498848]
[1759844683717,0.67,227.42,227.28,7.8498848]
[1759844683900,0.67,227.42,227.23,0.47]
[1759844683901,7.8498848,227.39,227.3,7.8498848]
[1759844684211,7.8498848,227.4,227.3,7.8498848]
[1759844684421,7.8498848,227.36,227.28,7.8498848]
[1759844684605,7.8498848,227.36,227.17,10.87647521]
[1759844684606,7.8498848,227.32,227.19,0.47]
[1759844684806,7.8498848,227.28,227.19,8.3198848]
[1759844685002,7.8498848,227.29,227.19,8.3198848]
[1759844685200,20.8,227.33,227.17,7.8498848]
[1759844685398,20.8,227.33,227.14,0.47]
[1759844685399,7.8498848,227.27,227.1,82.47896725]
[1759844685620,0.67,227.26,227.1,82.47896725]
[1759844685831,0.67,227.26,227.11,47.02]
[1759844686037,7.8498848,227.2,227.12,47.12]
[1759844686330,7.8498848,227.23,227.13,47.1]
[1759844686633,7.8498848,227.24,227.14,7.8498848]
[1759844686923,0.67,227.27,227.16,7.8498848]
[1759844687124,0.67,227.27,227.17,47.06]
[1759844687302,7.8498848,227.28,227.16,0.47]
[1759844687506,20.8,227.29,227.21,7.8498848]
[1759844687707,20.8,227.29,227.23,7.8498848]
[1759844687936,20.8,227.29,227.22,34.28]
[1759844688107,0.67,227.29,227.23,46.96]
[1759844688419,7.8498848,227.25,227.1,0.47]
[1759844688620,7.8498848,227.27,227.19,7.8498848]
[1759844689330,20.8,227.32,227.19,7.8498848]
[1759844689518,7.8498848,227.33,227.23,7.8498848]
[1759844689709,7.8498848,227.33,227.17,0.47]
[1759844689710,0.67,227.34,227.25,7.8498848]
[1759844689906,10.87647521,227.39,227.27,7.8498848]
[1759844690110,0.67,227.4,227.24,30.82]
[1759844690307,0.67,227.4,227.31,7.8498848]
[1759844690308,7.8498848,227.38,227.31,7.8498848]
[1759844690526,2.80005773,227.54,227.33,7.8498848]
[1759844690527,0.67,227.46,227.33,7.8498848]
[1759844690707,0.67,227.46,227.27,0.47]
[1759844690905,7.8498848,227.43,227.27,0.47]
[1759844691138,7.85065735,227.43,227.27,0.47]
[1759844691521,7.85065735,227.43,227.28,46.64]
[1759844691728,7.85065735,227.47,227.29,0.47]
[1759844692034,7.85065735,227.44,227.3,46.58]
[1759844692419,10.77254539,227.43,227.31,0.47]
[1759844693241,3.07787011,227.43,227.31,0.47]
[1759844693415,3.45179298,227.64,227.31,0.47]
[1759844693416,10.76875741,227.51,227.34,10.87647521]
[1759844693746,10.76875741,227.51,227.38,20.8]
[1759844693912,3.07678783,227.51,227.39,0.47]
[1759844694117,3.07678783,227.51,227.4,46.4]
[1759844694416,3.07611179,227.56,227.4,46.4]
[1759844694619,3.07600111,227.57,227.41,0.47]
[1759844694831,10.76594266,227.57,227.41,0.47]
[1759844695146,20.8,227.54,227.38,0.47]
[1759844695521,7.85065735,227.52,227.39,33.46]
[1759844696043,20.8,227.54,227.4,46.24]
[1759844696535,7.85065735,227.56,227.4,46.24]
[1759844696536,15.54093683,227.56,227.4,46.24]
[1759844696951,7.85065735,227.51,227.33,0.47]
[1759844697118,0.66,227.5,227.33,21.27]
[1759844697446,7.85065735,227.47,227.33,0.47]
[1759844697643,7.85065735,227.47,227.03,13.21]
[1759844697644,0.66,227.46,227.34,23.7]
[1759844697944,7.69027948,227.56,227.23,0.47]
[1759844697945,7.85065735,227.38,227.23,0.47]
[1759844698127,7.85065735,227.37,227.23,0.47]
[1759844698439,10.77586206,227.36,227.18,0.47]
[1759844698644,3.07761113,227.45,227.18,0.47]
[1759844698950,0.66,227.44,227.18,21.27]
[1759844699118,3.07761113,227.45,227.27,10.87647521]
[1759844699324,3.07744859,227.47,227.31,10.87647521]
[1759844699521,3.07744859,227.47,227.32,47.03]
[1759844699754,3.07744859,227.47,227.33,10.87647521]
[1759844699951,0.66,227.55,227.37,10.87647521]
[1759844699952,3.07638217,227.54,227.37,10.87647521]
[1759844700123,10.7673376,227.54,227.38,0.47]
[1759844700322,10.7673376,227.54,227.39,46.46]
[1759844700541,10.7673376,227.54,227.4,46.46]
[1759844700740,18.61799495,227.54,227.33,0.47]
[1759844701047,31.67647521,227.52,227.41,46.46]
[1759844701251,20.8,227.45,227.29,0.47]
[1759844701467,20.8,227.38,227.22,0.47]
[1759844701629,8.51065735,227.37,227.16,0.47]
[1759844701825,0.66,227.37,227.16,0.47]
[1759844702235,7.85065735,227.34,227.14,0.47]
[1759844702451,11.43728411,227.33,227.14,0.47]
[1759844702626,11.43728411,227.33,226.92,24.36002925]
[1759844702627,11.43728411,227.33,227.15,46.28]
[1759844703156,11.43728411,227.33,226.94,4.40645104]
[1759844703157,7.85065735,227.31,227.16,46.38]
[1759844703324,0.66,227.32,227.17,0.47]
[1759844703524,0.66,227.32,227.16,46.38]
[1759844703754,3.07922403,227.33,227.17,0.47]
[1759844703958,11.43728411,227.33,227.17,0.47]
[1759844704126,11.43728411,227.33,227.12,0.47]
[1759844704463,11.43728411,227.33,227.13,25.72]
[1759844704620,24.53922403,227.33,227.14,0.47]
[1759844704969,7.85065735,227.32,227.15,46.3]
[1759844705153,20.8,227.21,226.96,0.47]
[1759844705356,20.8,227.19,226.93,0.47]
[1759844705657,7.39525073,227.16,226.93,0.47]
[1759844705955,0.66,227.15,226.93,0.47]
[1759844706752,0.66,227.15,226.94,46.3]
[1759844706933,0.66,227.15,226.95,11.34647521]
[1759844707142,0.66,227.2,227.02,20.8]
[1759844707453,0.66,227.2,227.03,10.87647521]
[1759844707627,0.66,227.2,227.04,34.28]
[1759844707830,0.66,227.19,227.04,34.28]
[1759844708026,7.39525073,227.15,227.04,34.28]
[1759844708364,20.8,227.1,227.05,46.18]
[1759844708652,0.66,227.09,227.05,46.18]
[1759844709224,3.08202768,227.13,227.05,46.18]
[1759844709442,20.8,227.17,227.05,46.18]
[1759844709754,0.66,227.16,227.06,46.06]
[1759844709956,21.46,227.16,227.06,46.06]
[1759844710157,0.66,227.15,227.04,34.28]
[1759844710334,20.8,227.11,227.04,34.28]
[1759844710650,10.78914919,227.08,227.05,45.98]
[1759844710869,20.8,227.05,226.93,34.3]
[1759844711035,20.8,227.05,226.94,45.96]
[1759844711240,20.8,227.01,226.94,45.96]
[1759844711443,0.66,227.0,226.94,45.96]
[1759844711856,7.39525073,226.98,226.93,34.3]
[1759844712058,20.8,226.91,226.78,34.3]
[1759844712227,0.66,226.9,226.78,34.3]
[1759844712431,18.71587104,227.08,226.78,34.3]
[1759844712432,20.8,226.85,226.79,46.06]
[1759844712650,7.71332863,226.88,226.79,46.06]
[1759844712843,2.20380818,226.88,226.79,46.06]
[1759844713041,20.8,226.85,226.8,46.02]
[1759844713239,20.8,226.89,226.8,46.02]
[1759844713240,10.87647521,226.89,226.8,46.02]
[1759844713436,20.8,227.03,226.8,46.02]
[1759844713640,20.8,226.87,226.8,46.02]
[1759844713870,20.8,226.84,226.78,34.3]
[1759844714035,0.66,226.86,226.81,46.06]
[1759844714360,10.87647521,226.91,226.81,46.06]
[1759844714361,20.8,226.88,226.81,46.06]
[1759844714544,2.20390532,226.87,226.82,46.02]